lending/lending_fUSD_20241120
["ID","MTS","AMOUNT","RATE_DAILY","PERIOD"]
[342717774,1732080632116,-7151.59550823,0.0001,2]
[342717775,1732080632217,-1156.2968551,0.0001,2]
[342717776,1732080632228,-11681.57986726,0.0001,2]
[342717777,1732080632239,-2323.06085824,0.0001,2]
[342717778,1732080632261,-1209.25238931,0.0001,2]
[342717779,1732080632272,-696.63711264,0.0001,2]
[342717780,1732080632283,-13577.69999999,0.0001,2]
[342717781,1732080632294,-15116.55590463,0.0001,2]
[342717782,1732080632305,-16345.36368591,0.0001,2]
[342717801,1732080638026,-3705.51625185,0.0001,2]
[342717802,1732080638037,-5016.8608316,0.0001,2]
[342717803,1732080638048,-3335.22794155,0.0001,2]
[342717804,1732080638308,-31448699.5495019,0.0001,2]
[342717805,1732080638424,-1174613.75040661,0.0001,2]
[342717806,1732080638438,-5582.11010658,0.0001,2]
[342717807,1732080638453,-69071.4931099,0.0001,2]
[342717808,1732080638465,-1194.41762603,0.0001,2]
[342717941,1732080641413,-12346.88064749,0.0001,2]
[342717942,1732080641424,-2467.70535711,0.0001,2]
[342717966,1732080643013,-71078.32943218,0.0001,2]
[342717967,1732080643024,-9737.43318187,0.0001,2]
[342717968,1732080643035,-13714.2128189,0.0001,2]
[342717969,1732080643237,-420271.84611453,0.0001,2]
[342718010,1732080645896,-393.81396484,0.0001,2]
[342718011,1732080646012,-104.4622128,0.0001,2]
[342718012,1732080646023,-24330.57467753,0.0001,2]
[342718013,1732080646034,-3323.90269573,0.0001,2]
[342718014,1732080646045,-3934.35823649,0.0001,2]
[342718015,1732080646070,-785.57556237,0.0001,2]
[342718016,1732080646081,-6672.00000003,0.0001,2]
[342718017,1732080646099,-2585.24257351,0.0001,2]
[342718018,1732080646145,-163.28597674,0.0001,2]
[342718019,1732080646173,-79802.72824176,0.0001,2]
[342718020,1732080646187,-11113.03757907,0.0001,2]
[342718021,1732080646198,-603.79890277,0.0001,2]
[342718022,1732080646210,-715.12739497,0.0001,2]
[342718023,1732080646222,-4574.11096134,0.0001,2]
[342718024,1732080646233,-2492.7444891,0.0001,2]
[342718042,1732080686711,400.0,9e-05,3]
[342718043,1732080688806,900.0,9.1e-05,3]
[342718044,1732080690895,1300.0,9.2e-05,3]
[342718045,1732080693000,1800.0,9.3e-05,3]
[342718046,1732080695085,2200.0,9.4e-05,3]
[342718047,1732080697382,400.0,9.5e-05,3]
[342718048,1732080699900,400.0,9.6e-05,3]
[342718049,1732080702091,400.0,9.7e-05,3]
[342718050,1732080704225,400.0,9.8e-05,3]
[342718051,1732080706342,827.0,9.9e-05,3]
[342718056,1732081652145,-151.30727379,9e-05,2]
[342718057,1732081652170,-434.40929506,9.227e-05,2]
[342718058,1732081669622,-3841.59070494,9.227e-05,2]
[342718059,1732081669741,-300.0,9.799e-05,2]
[342718060,1732081669769,-18858.40929506,9.8e-05,2]
[342718080,1732081832131,-773.21830494,9.8e-05,2]
[342718081,1732081832142,-134.51902236,9.8e-05,2]
[342718082,1732081832245,-2365.48097764,9.8e-05,2]
[342718083,1732081832254,-69.18099369,9.863e-05,2]
[342718086,1732081838111,-80.81900631,9.863e-05,2]
[342718087,1732081838121,-165.1989381,9.873e-05,2]
[342718088,1732081838130,-135.31670927,9.873e-05,2]
[342718089,1732081838143,-368.07227993,9.873e-05,2]
[342718090,1732081838152,-504.76805763,9.873e-05,2]
[342718091,1732081838162,-500.0,9.873e-05,2]
[342718092,1732081838171,-160.5702998,9.873e-05,2]
[342718093,1732081838181,-500.76529543,9.873e-05,2]
[342718094,1732081838190,-2746.1038108,9.89e-05,2]
[342718095,1732081838200,-1000.0,9.899e-05,2]
[342718096,1732081838209,-518.78133681,9.899e-05,2]
[342718097,1732081838218,-150.0,9.899e-05,2]
[342718098,1732081838227,-4214.1291971,9.9e-05,2]
[342718099,1732081838238,-281.55,9.9e-05,2]
[342718100,1732081838266,-1470.8043,9.9e-05,2]
[342718101,1732081838332,-158430.1828029,9.9e-05,2]
[342718102,1732081838342,-137849.7572,9.9e-05,2]
[342718103,1732081838351,-31378846.1886143,0.0001,2]
[342718104,1732081838362,-1174613.75040661,0.0001,2]
[342718105,1732081838373,-1966.89684553,0.0001,2]
[342718106,1732081838384,-1179.32628687,0.0001,2]
[342718107,1732081838395,-254.85887675,0.0001,2]
[342718108,1732081838406,-82494.77612895,0.0001,2]
[342718109,1732081838442,-9909.6179052,0.0001,2]
[342718110,1732081838453,-38680.9163621,0.0001,2]
[342718111,1732081838464,-1357.22542988,0.0001,2]
[342718112,1732081838475,-1417.04251441,0.0001,2]
[342718113,1732081838487,-4103.52280079,0.0001,2]
[342718115,1732081840092,-13900.21492254,0.0001,2]
[342718116,1732081840154,-657.44734233,0.0001,2]
[342718117,1732081840270,-302.55729824,0.0001,2]
[342718118,1732081840281,-2419.950321,0.0001,2]
[342718119,1732081840334,-2511.15745482,0.0001,2]
[342718120,1732081840344,-2304.94355658,0.0001,2]
[342718121,1732081840391,-1512.3500004,0.0001,2]
[342718122,1732081840402,-6995.58063436,0.0001,2]
[342718129,1732081843209,-1133.14062852,0.0001,2]
[342718130,1732081843324,-1231.79376139,0.0001,2]
[342718131,1732081843335,-2657.80000004,0.0001,2]
[342718132,1732081843385,-352157.50600812,0.0001,2]
[342718133,1732081843443,-831168.0,0.0001,2]
[342718145,1732081846121,-28190.39972839,0.0001,2]
[342718146,1732081846242,-1876.07082195,0.0001,2]
[342718147,1732081846311,-1937.01018974,0.0001,2]
[342718149,1732081888877,161.31,0.00025178,120]
[342718157,1732082690691,-344.78,0.00023297,30]
[342718158,1732082690828,-344.78,0.00025881,30]
[342718159,1732082690870,-180.29,0.00028211,120]
[342718160,1732082690909,-344.78,0.00028465,30]
[342718161,1732082690949,-23146.6802748,0.0003,120]
[342718162,1732082690988,-344.78,0.00031049,30]
[342718163,1732082691027,-161.31,0.00031473,120]
[342718164,1732082691063,-500.0,0.00032933,120]
[342718165,1732082691099,-344.78,0.00033633,120]
[342718166,1732082691136,-180.29,0.00033853,120]
[342718167,1732082691172,-310.6,0.00034458,120]
[342718168,1732082691214,-1579.26861979,0.000348,30]
[342718169,1732082691250,-54666.70228924,0.000348,30]
[342718170,1732082691287,-86702.80733818,0.00035,30]
[342718171,1732082691322,-1000.0,0.00035,30]
[342718172,1732082691357,-2058.0,0.00035,94]
[342718173,1732082691391,-498.568439,0.000353,120]
[342718174,1732082691427,-600.0,0.000353,120]
[342718175,1732082691461,-446.3,0.00035467,30]
[342718176,1732082691500,-1500.0,0.00035616,120]
[342718177,1732082691536,-344.78,0.00036217,120]
[342718178,1732082691571,-170.59005733,0.000372,103]
[342718179,1732082691606,-151.0,0.00037507,120]
[342718180,1732082691643,-161.31,0.00037767,120]
[342718181,1732082691679,-2263.8,0.00037955,117]
[342718182,1732082691716,-3231.04876878,0.00038,120]
[342718183,1732082691753,-631.02828315,0.00038,120]
[342718184,1732082736118,-600.0,0.000353,120]
[342718185,1732082736164,-344.78,0.00038801,120]
[342718186,1732082736206,-50000.0,0.0003896,30]
[342718187,1732082736246,-154.26599964,0.00039,120]
[342718188,1732082736289,-150.0,0.000394,120]
[342718189,1732082736330,-50000.0,0.0003958,60]
[342718190,1732082736372,-800.0,0.0004,120]
[342718191,1732082736414,-1000.0,0.0004,30]
[342718192,1732082736454,-520.3056695,0.0004,120]
[342718193,1732082736495,-12339.74,0.0004,30]
[342718194,1732082736536,-3231.04876878,0.0004,120]
[342718195,1732082736576,-631.02828315,0.0004,120]
[342718196,1732082736615,-159.9481086,0.0004,89]
[342718197,1732082736654,-508.4,0.0004,120]
[342718198,1732082736695,-12500.0,0.0004,120]
[342718199,1732082736735,-12500.0,0.0004,120]
[342718200,1732082736879,-3678.35263615,0.0004,120]
[342718201,1732082736922,-12499.97,0.0004,120]
[342718202,1732082736964,-12500.0,0.0004,120]
[342718203,1732082737005,-324.34,0.0004,120]
[342718204,1732082737045,-876.03,0.0004,120]
[342718205,1732082737086,-444.78,0.0004,120]
[342718206,1732082737128,-12500.0,0.0004,120]
[342718207,1732082737167,-2468.85,0.0004,30]
[342718208,1732082737207,-12499.99,0.0004,120]
[342718209,1732082737248,-5534.38,0.0004,30]
[342718210,1732082737290,-51776.39496964,0.0004,120]
[342718211,1732082737334,-285.65,0.0004,120]
[342718212,1732082737374,-1000.0,0.000403,30]
[342718213,1732082737414,-10700.63,0.00040375,120]
[342718214,1732082737455,-6657.33,0.00040375,120]
[342718215,1732082737494,-1130.69,0.000405,120]
[342718216,1732082737537,-1000.0,0.000406,30]
[342718217,1732082737576,-4940.4,0.00040909,117]
[342718218,1732082737615,-271.3301357,0.00040998,120]
[342718219,1732082737655,-150.0,0.00041,120]
[342718220,1732082737696,-10000.0,0.00041,120]
[342718221,1732082737737,-361.27159968,0.00041,120]
[342718222,1732082737777,-273.13695,0.00041088,30]
[342718223,1732082738112,500.0,0.000403,30]
[342718224,1732082738166,150.0,0.000403,30]
[342718225,1732082738413,500.0,0.00040375,120]
[342718226,1732082738461,500.0,0.000403,30]
[342718227,1732082738758,150.0,0.00040375,120]
[342718228,1732082738877,150.0,0.000402,30]
[342718229,1732082738924,500.0,0.000405,120]
[342718230,1732082738988,500.0,0.00040375,120]
[342718231,1732082739182,150.0,0.000405,120]
[342718232,1732082739358,150.0,0.000402,30]
[342718233,1732082739407,500.0,0.000406,30]
[342718234,1732082739666,500.0,0.000405,120]
[342718235,1732082739810,150.0,0.000406,30]
[342718236,1732082739884,150.0,0.00040275,120]
[342718237,1732082740306,150.0,0.00040909,117]
[342718238,1732082740530,500.0,0.00040909,117]
[342718239,1732082740577,150.0,0.000402,30]
[342718240,1732082740793,500.0,0.000405,120]
[342718241,1732082740951,500.0,0.00040998,120]
[342718242,1732082741033,150.0,0.00040275,120]
[342718243,1732082741152,150.0,0.00040998,120]
[342718244,1732082741179,-201.096053,9.6e-05,2]
[342718245,1732082741198,-183.20884692,9.6e-05,2]
[342718246,1732082741397,500.0,0.00041,120]
[342718247,1732082741653,150.0,0.00041,120]
[342718248,1732082741792,150.0,0.000404,120]
[342718249,1732082741845,500.0,0.00041088,30]
[342718250,1732082774249,-6689.34293256,0.00035469,30]
[342718251,1732082774290,-54658.88338816,0.00035469,30]
[342718252,1732082774329,-5311.78919962,0.00035469,30]
[342718253,1732082774369,-1000.0,0.00035469,30]
[342718254,1732082774410,-13063.55794479,0.00035469,120]
[342718255,1732082774450,-414.8981,0.00035469,30]
[342718256,1732082774492,-3231.04876878,0.00035469,120]
[342718257,1732082774533,-920.22562995,0.00035469,120]
[342718258,1732082774574,-437.1328517,0.00035469,120]
[342718259,1732082774612,-631.02828315,0.00035469,120]
[342718260,1732082774651,-1204.0,0.00035469,35]
[342718261,1732082774692,-220.0,0.00035469,120]
[342718262,1732082774732,-199.5080842,0.00035469,120]
[342718263,1732082774771,-1520000.0,0.00035469,30]
[342718264,1732082774808,-618.8341807,0.00035469,120]
[342718265,1732082883044,250.54253946,0.00027,120]
[342718266,1732082949742,599.0,0.00027,120]
[342718267,1732082953163,-1816.79115308,9.6e-05,2]
[342718268,1732082953183,-1000.0,9.6e-05,2]
[342718269,1732082953206,-434.81366338,9.6e-05,2]
[342718270,1732082953227,-500.0,9.673e-05,2]
[342718271,1732082953247,-150.0,9.699e-05,2]
[342718272,1732082953267,-20496.7493,9.7e-05,2]
[342718273,1732082953289,-1192.2395,9.7e-05,2]
[342718274,1732082953309,-3586.223,9.7e-05,2]
[342718275,1732082953329,-871.5836,9.7e-05,2]
[342718276,1732082953350,-579.6724,9.7e-05,2]
[342718277,1732082953372,-160550.9904,9.7e-05,2]
[342718278,1732082953391,-8826.691,9.7e-05,2]
[342718279,1732082953411,-20734.8205,9.7e-05,2]
[342718280,1732082953432,-684.0476,9.7e-05,2]
[342718281,1732082953452,-583.4287,9.7e-05,2]
[342718282,1732082953472,-178842.31820754,9.8e-05,2]
[342718285,1732082992514,1000.0,0.00027,120]
[342718288,1732083022412,996.87,0.00027,120]
[342718289,1732083032238,-5274.26386908,9.6e-05,2]
[342718302,1732083032342,-17556.82503092,9.6e-05,2]
[342718304,1732083032352,-956.89861506,9.6e-05,2]
[342718309,1732083032493,-1192.62528494,9.6e-05,2]
[342718310,1732083032503,-199201.12909246,9.8e-05,2]
[342718311,1732083032512,-267.880248,9.863e-05,2]
[342718312,1732083032522,-151.528371,9.863e-05,2]
[342718313,1732083032532,-380.332773,9.863e-05,2]
[342718314,1732083032543,-267.880248,9.999e-05,2]
[342718315,1732083032552,-151.528371,9.999e-05,2]
[342718316,1732083032561,-380.332773,9.999e-05,2]
[342718317,1732083032571,-1070104.82690065,0.0001,2]
[342718318,1732083032582,-2433.59380608,0.0001,2]
[342718319,1732083032600,-389.78,0.0001,2]
[342718320,1732083032611,-454131.52666453,0.0001,2]
[342718321,1732083032623,-2320.96704111,0.0001,2]
[342718322,1732083032634,-8391.64329693,0.0001,2]
[342718323,1732083032727,-6815.95593447,0.0001,2]
[342718333,1732083038236,-332.33957393,0.0001,2]
[342718334,1732083038342,-353.54,0.0001,2]
[342718335,1732083038383,-31378846.1886143,0.0001,2]
[342718336,1732083038396,-1174613.75040661,0.0001,2]
[342718337,1732083038407,-1099.05000008,0.0001,2]
[342718338,1732083038419,-61596.74852906,0.0001,2]
[342718339,1732083038431,-1647.94999986,0.0001,2]
[342718340,1732083038443,-710.89172499,0.0001,2]
[342718341,1732083038519,-8916.23037043,0.0001,2]
[342718342,1732083038547,-279.36,0.0001,2]
[342718343,1732083038659,-25972.30428063,0.0001,2]
[342718359,1732083040218,-3236.46379492,0.0001,2]
[342718360,1732083040335,-471069.91752864,0.0001,2]
[342718361,1732083040346,-518798.24747045,0.0001,2]
[342718362,1732083040435,-1000.0,0.0001,2]
[342718363,1732083040447,-998.00700176,0.0001,2]
[342718364,1732083040478,-1405.28875568,0.0001,2]
[342718365,1732083040489,-1294.42999992,0.0001,2]
[342718367,1732083040543,-324.6944534,0.0001,2]
[342718369,1732083040554,-1409.64322156,0.0001,2]
[342718371,1732083040565,-1840.32309951,0.0001,2]
[342718378,1732083040618,-3886.615,0.0001,2]
[342718391,1732083043343,-92617.0,0.0001,2]
[342718392,1732083043354,-1892.98,0.0001,2]
[342718393,1732083043367,-3347.28386266,0.0001,2]
[342718394,1732083043467,-663.04716386,0.0001,2]
[342718395,1732083043568,-974.33309781,0.0001,2]
[342718396,1732083043579,-225234.75502666,0.0001,2]
[342718397,1732083043607,-9207.35999999,0.0001,2]
[342718398,1732083043618,-1231.02114292,0.0001,2]
[342718399,1732083043629,-2939.36760804,0.0001,2]
[342718400,1732083043640,-27209.1,0.0001,2]
[342718402,1732083046209,-8483.12169868,0.0001,2]
[342718406,1732083046240,-4762.04061838,0.0001,2]
[342718407,1732083046273,-2695.19999978,0.0001,2]
[342718408,1732083054316,1000.0,0.00027,120]
[342718409,1732083066194,1000.0,0.00027,120]
[342718410,1732083073412,1000.0,0.00027,120]
[342718411,1732083084339,1000.0,0.00027,120]
[342718412,1732083092442,1000.0,0.00027,120]
[342718413,1732083100453,1000.0,0.00027,120]
[342718414,1732083109621,1000.0,0.00027,120]
[342718415,1732083119555,1000.0,0.00027,120]
[342718416,1732083188112,1000.0,0.00027,120]
[342718417,1732083197392,1000.0,0.00027,120]
[342718418,1732083209239,1000.0,0.00027,120]
[342718419,1732083218224,1000.0,0.00027,120]
[342718421,1732083306660,800.0,0.00026986,120]
[342718422,1732083335481,344.79,0.00017147,30]
[342718423,1732083335676,344.79,0.00019731,30]
[342718426,1732083463905,262.26,0.00025834,120]
[342718428,1732083486151,2147.0,0.00027,120]
[342718429,1732083489853,450.0,0.00027,120]
[342718430,1732083517708,500.0,0.00026,60]
[342718431,1732083574884,900.0,0.00027,120]
[342718432,1732083660727,2531.04535386,0.00027,120]
[342718433,1732083746874,557.14922517,0.00027,120]
[342718434,1732083829269,820.0,0.00027,120]
[342718435,1732083852623,300.0,0.00016499,120]
[342718436,1732083854028,300.0,0.00016499,120]
[342718437,1732083888814,403.9,0.00027,120]
[342718438,1732084035558,-150.0,9.599e-05,2]
[342718439,1732084035742,-1041.88087525,9.6e-05,2]
[342718440,1732084045171,-371.02392069,9.6e-05,2]
[342718441,1732084054113,-582.42772928,9.6e-05,2]
[342718442,1732084054216,-7362.63874127,9.6e-05,2]
[342718443,1732084083105,1656.84980551,6.94e-05,2]
[342718451,1732084151124,-1440.13962351,9.6e-05,2]
[342718452,1732084152361,4771.58,0.00027,120]
[342718455,1732084166101,-12067.82551,9.6e-05,2]
[342718456,1732084166122,-821.3123,9.6e-05,2]
[342718457,1732084166143,-839.9913,9.6e-05,2]
[342718458,1732084166164,-4728.3805,9.6e-05,2]
[342718459,1732084166184,-52624.0176,9.6e-05,2]
[342718460,1732084166207,-500.0,9.673e-05,2]
[342718461,1732084166228,-34153.21099,9.7e-05,2]
[342718462,1732084170098,-921.33606441,9.7e-05,2]
[342718465,1732084201626,550.7384005,0.00022,120]
[342718468,1732084232007,-3331.0459,9.6e-05,2]
[342718469,1732084232042,-300.0,9.699e-05,2]
[342718470,1732084232082,-150.0,9.699e-05,2]
[342718471,1732084232116,-68032.0163,9.7e-05,2]
[342718499,1732084232482,-6845.27490163,9.7e-05,2]
[342718500,1732084232493,-3154.72509837,9.7e-05,2]
[342718501,1732084232504,-464.04027158,9.7e-05,2]
[342718502,1732084232522,-397.59685407,9.7e-05,2]
[342718503,1732084232533,-2721.47016937,9.7e-05,2]
[342718504,1732084232567,-20453.10670438,9.7e-05,2]
[342718505,1732084232578,-54184.78904245,9.7e-05,2]
[342718506,1732084232593,-450.0,9.7e-05,2]
[342718507,1732084232604,-310.31,9.7e-05,2]
[342718508,1732084232638,-812.9464343,9.7e-05,2]
[342718509,1732084232648,-1552.40314593,9.7e-05,2]
[342718510,1732084232659,-1019.26777197,9.7e-05,2]
[342718511,1732084232678,-9256.6090516,9.7e-05,2]
[342718517,1732084238324,-22352.36335382,9.7e-05,2]
[342718518,1732084238482,-12476.32744612,9.7e-05,2]
[342718519,1732084238493,-34908.2306,9.7e-05,2]
[342718520,1732084238504,-24650.7085,9.7e-05,2]
[342718521,1732084238514,-500.0,9.763e-05,2]
[342718522,1732084238523,-227.0,9.801e-05,2]
[342718523,1732084238532,-5949.360753,9.9e-05,2]
[342718524,1732084238542,-150.01,9.999e-05,2]
[342718525,1732084238552,-31300384.55131518,0.0001,2]
[342718526,1732084238564,-1174613.75040661,0.0001,2]
[342718527,1732084238723,-818.06816913,0.0001,2]
[342718528,1732084238734,-711.85380473,0.0001,2]
[342718529,1732084238771,-14167.46466396,0.0001,2]
[342718530,1732084238873,-3486.8835808,0.0001,2]
[342718531,1732084238884,-1774.65,0.0001,2]
[342718532,1732084238895,-5306.65431983,0.0001,2]
[342718533,1732084238906,-12144.01014292,0.0001,2]
[342718534,1732084238917,-11318.07618266,0.0001,2]
[342718535,1732084238929,-1512.75604773,0.0001,2]
[342718536,1732084238940,-2010.92058438,0.0001,2]
[342718619,1732084240353,-355.9706308,0.0001,2]
[342718620,1732084240365,-2164.26371877,0.0001,2]
[342718634,1732084243297,-225234.75502666,0.0001,2]
[342718635,1732084243308,-2068.62958451,0.0001,2]
[342718636,1732084243321,-1505.40089063,0.0001,2]
[342718637,1732084243332,-803.9854127,0.0001,2]
[342718638,1732084243458,-521.88973212,0.0001,2]
[342718639,1732084243469,-71813.06221684,0.0001,2]
[342718640,1732084243547,-14269.389368,0.0001,2]
[342718641,1732084243558,-8589.0305811,0.0001,2]
[342718642,1732084243635,-781.27465,0.0001,2]
[342718643,1732084243647,-843.798228,0.0001,2]
[342718647,1732084246271,-1417.86226131,0.0001,2]
[342718648,1732084246434,-280.81103182,0.0001,2]
[342718649,1732084246473,-4026.8900624,0.0001,2]
[342718650,1732084246523,-3783.14165234,0.0001,2]
[342718651,1732084246543,-691.3824469,0.0001,2]
[342718652,1732084246554,-360.08234564,0.0001,2]
[342718653,1732084250275,3115.34279189,0.00025,60]
[342718654,1732084253578,511.80283377,0.00023,120]
[342718655,1732084257912,807.75852486,9.5e-05,120]
[342718656,1732084396385,2000.0,0.00025545,120]
[342718657,1732084396787,2000.0,0.0002678,120]
[342718658,1732084401846,303.351885,0.00025022,120]
[342718659,1732084402214,500.0,0.00026431,120]
[342718660,1732084406988,500.0,0.00026028,120]
[342718661,1732084424204,310.31,0.00016658,30]
[342718662,1732084424335,310.31,0.00019242,30]
[342718663,1732084730912,1000.0,0.00027,120]
[342718664,1732084802986,1819.16,8.219e-05,2]
[342718665,1732084812526,300.0,0.00015999,120]
[342718666,1732084812675,300.0,0.00016499,120]
[342718667,1732084812820,300.0,0.00019999,120]
[342718668,1732084812962,300.0,0.00024999,120]
[342718669,1732084813711,300.0,0.00015999,120]
[342718670,1732084813979,353.30327931,0.00016499,120]
[342718672,1732084997330,2020.409311,0.00025022,120]
[342718673,1732084997772,2000.0,0.00026431,120]
[342718674,1732085003407,500.0,0.00025845,120]
[342718675,1732085008106,500.0,0.0002582,120]
[342718676,1732085102054,-197.9,8.506e-05,2]
[342718677,1732085102077,-4045.63,9.038e-05,2]
[342718678,1732085169368,279.27,0.00016658,30]
[342718679,1732085169560,279.27,0.00019242,30]
[342718680,1732085225419,-585.38768489,8.716e-05,2]
[342718681,1732085347115,-4086.33,8.576e-05,2]
[342718682,1732085347136,-150.36,8.591e-05,2]
[342718683,1732085347158,-23900.0,8.648e-05,2]
[342718684,1732085347181,-2492.28231511,8.716e-05,2]
[342718685,1732085347203,-2185.98,8.753e-05,2]
[342718686,1732085347223,-1852.42,8.779e-05,2]
[342718687,1732085347250,-1494.77,8.901e-05,2]
[342718688,1732085347272,-520.81,8.901e-05,2]
[342718689,1732085347293,-5588.19128489,8.938e-05,2]
[342718696,1732085356086,-2131.50834691,8.938e-05,2]
[342718697,1732085356114,-7963.4403682,8.938e-05,2]
[342718698,1732085356135,-272.49,8.963e-05,2]
[342718699,1732085356155,-238.28406844,9e-05,2]
[342718704,1732085415168,250.0,8.959e-05,2]
[342718711,1732085431582,-2663.91243218,9.018e-05,2]
[342718712,1732085431594,-87.63756782,9.018e-05,2]
[342718713,1732085431603,-837.67967218,9.022e-05,2]
[342718714,1732085431648,-1162.32032782,9.022e-05,2]
[342718715,1732085431658,-197.9,9.038e-05,2]
[342718716,1732085431667,-223.05991218,9.139e-05,2]
[342718717,1732085431833,-851.94168474,9.139e-05,2]
[342718718,1732085432003,-1632.38840308,9.139e-05,2]
[342718719,1732085432012,-150.0,9.148e-05,2]
[342718720,1732085432021,-3007.0,9.149e-05,2]
[342718721,1732085432031,-200.0,9.206e-05,2]
[342718722,1732085432041,-250.0,9.265e-05,2]
[342718723,1732085432051,-3148.71,9.326e-05,2]
[342718724,1732085432062,-250.0,9.436e-05,2]
[342718725,1732085432071,-300.0,9.459e-05,2]
[342718726,1732085432080,-591.74,9.46e-05,2]
[342718727,1732085432090,-825.3617,9.5e-05,2]
[342718728,1732085432099,-389.44,9.51e-05,2]
[342718729,1732085432108,-150.0,9.579e-05,2]
[342718730,1732085432118,-1679.51,9.58e-05,2]
[342718731,1732085432127,-13256.99819254,9.6e-05,2]
[342718736,1732085437580,-4010.37000112,9.6e-05,2]
[342718737,1732085437592,-3824.58738114,9.6e-05,2]
[342718738,1732085437603,-8063.61724454,9.6e-05,2]
[342718739,1732085437615,-4677.75738931,9.6e-05,2]
[342718740,1732085437626,-652.23911802,9.6e-05,2]
[342718741,1732085437637,-4677.18492924,9.6e-05,2]
[342718742,1732085437749,-371.265,9.6e-05,2]
[342718743,1732085437760,-878.71473918,9.6e-05,2]
[342718744,1732085437916,-6437.74720491,9.6e-05,2]
[342718745,1732085437927,-17981.6064,9.6e-05,2]
[342718746,1732085437936,-1000.0,9.659e-05,2]
[342718747,1732085437946,-250.0,9.89e-05,2]
[342718748,1732085437955,-435.0,9.9e-05,2]
[342718749,1732085437965,-153.79114043,9.973e-05,2]
[342718750,1732085437975,-150.01,9.999e-05,2]
[342718751,1732085437984,-53943.78441001,9.999e-05,2]
[342718752,1732085437994,-92490.62630327,0.0001,2]
[342718753,1732085438023,-5825461.60259642,0.0001,2]
[342718754,1732085438032,-10604.50135775,0.0001,2]
[342718756,1732085438042,-1000.0,0.0001,2]
[342718758,1732085438051,-1000.0,0.0001,2]
[342718760,1732085438063,-365.54018036,0.0001,2]
[342718762,1732085438072,-25543482.12344847,0.0001,2]
[342718764,1732085438083,-1174613.75040661,0.0001,2]
[342718766,1732085438098,-332.28475903,0.0001,2]
[342718769,1732085438109,-2823.0,0.0001,2]
[342718772,1732085439455,-519.14717886,0.0001,2]
[342718773,1732085439470,-483.80163546,0.0001,2]
[342718774,1732085439524,-8564.28468911,0.0001,2]
[342718775,1732085439594,-932.48,0.0001,2]
[342718776,1732085439782,-1590.65548125,0.0001,2]
[342718777,1732085439796,-317.04082057,0.0001,2]
[342718829,1732085442504,-30001.266,0.0001,2]
[342718830,1732085442516,-571.02388664,0.0001,2]
[342718831,1732085442527,-21312.0993839,0.0001,2]
[342718832,1732085442538,-1431.1848297,0.0001,2]
[342718833,1732085442549,-1663.8130781,0.0001,2]
[342718834,1732085442560,-7764.0017081,0.0001,2]
[342718835,1732085442582,-2971.466578,0.0001,2]
[342718836,1732085442593,-1499.03553282,0.0001,2]
[342718837,1732085442605,-3197.54513101,0.0001,2]
[342718838,1732085442617,-12768.25755691,0.0001,2]
[342718839,1732085442668,-3190.25,0.0001,2]
[342718840,1732085442832,-666.69174486,0.0001,2]
[342718841,1732085442846,-754.11991838,0.0001,2]
[342718842,1732085442858,-2016.6,0.0001,2]
[342718843,1732085442870,-2467.1499995,0.0001,2]
[342718844,1732085442881,-7440.45079688,0.0001,2]
[342718845,1732085442892,-426.29565446,0.0001,2]
[342718847,1732085443318,-1000.0,0.0001,2]
[342718848,1732085443338,-711.8941568,0.0001,2]
[342718849,1732085443348,-3095.36681398,0.0001,2]
[342718850,1732085443359,-529.685291,0.0001,2]
[342718851,1732085443370,-373.5132,0.0001,2]
[342718852,1732085443431,-1.684e-05,0.0001,2]
[342718853,1732085445437,-981.68660225,9.999e-05,2]
[342718854,1732085445448,-6277.04404791,0.0001,2]